lending/lending_fUSD_20260206
["ID","MTS","AMOUNT","RATE_DAILY","PERIOD"]
[404634208,1770360869965,217.15233878,0.00044105,120]
[404634209,1770360870713,225.18697532,0.00044105,120]
[404634210,1770360871426,233.51889341,0.00044105,120]
[404634211,1770360872129,242.15909246,0.00044105,120]
[404634212,1770360872851,251.11897888,0.00044105,120]
[404634213,1770360873082,220.44642715,0.00044105,120]
[404634214,1770360873579,260.4103811,0.00044105,120]
[404634215,1770360874292,270.0455652,0.00044105,120]
[404634216,1770360875009,280.03725112,0.00044105,120]
[404634217,1770360875728,290.39862941,0.00044105,120]
[404634218,1770360876434,290.39862941,0.00044105,120]
[404634219,1770360882267,193.17188226,0.00010616,2]
[404634220,1770360901514,1200.0,0.00010715,2]
[404634221,1770360908915,8193.34831792,0.00010616,2]
[404634222,1770360908954,10000.01,0.00010616,2]
[404634223,1770360908987,10000.01,0.00010616,2]
[404634224,1770360909020,10000.01,0.00010616,2]
[404634225,1770360909059,10000.01,0.00010616,2]
[404634226,1770360909092,10000.01,0.00010616,2]
[404634227,1770360909123,10000.01,0.00010616,2]
[404634228,1770360909153,10000.01,0.00010616,2]
[404634229,1770360909183,5000.01,0.00010616,2]
[404634230,1770360909214,5000.01,0.00010616,2]
[404634231,1770360909241,5000.01,0.00010616,2]
[404634232,1770360909268,5000.01,0.00010616,2]
[404634233,1770360909295,5000.01,0.00010616,2]
[404634234,1770360909322,5000.01,0.00010616,2]
[404634235,1770360909348,5000.01,0.00010616,2]
[404634236,1770360909375,5000.01,0.00010616,2]
[404634237,1770360909406,5000.01,0.00010616,2]
[404634238,1770360909433,5000.01,0.00010616,2]
[404634239,1770360909463,10000.01,0.00010616,2]
[404634240,1770360909491,10000.01,0.00010616,2]
[404634241,1770360951464,171.39562816,0.00010516,2]
[404634242,1770360952442,938.27,0.00044105,120]
[404634243,1770360961350,300.0,0.00010615,2]
[404634244,1770360975098,151.0,0.00044105,120]
[404634245,1770360975816,156.587,0.00044105,120]
[404634246,1770360976538,162.380719,0.00044105,120]
[404634247,1770360977197,168.3888056,0.00044105,120]
[404634248,1770360977917,174.61919141,0.00044105,120]
[404634249,1770360978896,181.08010149,0.00044105,120]
[404634250,1770360979300,187.78006525,0.00044105,120]
[404634251,1770360979993,194.72792766,0.00044105,120]
[404634252,1770360980697,201.93286099,0.00044105,120]
[404634253,1770360985793,209.40437684,0.00044105,120]
[404634254,1770360987601,217.15233878,0.00044105,120]
[404634255,1770360988358,225.18697532,0.00044105,120]
[404634256,1770360989089,233.51889341,0.00044105,120]
[404634257,1770360989845,242.15909246,0.00044105,120]
[404634258,1770360990550,251.11897888,0.00044105,120]
[404634259,1770360991246,260.4103811,0.00044105,120]
[404634260,1770360992031,270.0455652,0.00044105,120]
[404634261,1770360993193,280.03725112,0.00044105,120]
[404634262,1770360993909,290.39862941,0.00044105,120]
[404634263,1770360994608,290.39862941,0.00044105,120]
[404634264,1770361002375,1042.71153006,0.00010516,2]
[404634265,1770361021275,300.0,0.00010615,2]
[404634266,1770361041469,455.34966412,0.00010516,2]
[404634267,1770361053370,403.54774223,0.00010516,2]
[404634268,1770361068149,350.02786539,0.00010516,2]
[404634269,1770361081332,300.0,0.00010615,2]
[404634270,1770361082652,800.0,0.00044105,31]
[404634271,1770361083010,800.0,0.00044105,31]
[404634272,1770361083366,800.0,0.00044105,31]
[404634273,1770361083704,800.0,0.00044105,31]
[404634274,1770361084036,800.0,0.00044105,31]
[404634275,1770361084347,800.0,0.00044105,31]
[404634276,1770361084689,800.0,0.00044105,31]
[404634277,1770361085090,800.0,0.00044105,31]
[404634278,1770361085462,800.0,0.00044105,31]
[404634279,1770361085819,800.0,0.00044105,31]
[404634280,1770361086088,800.0,0.00044105,31]
[404634281,1770361086428,800.0,0.00044105,31]
[404634282,1770361086836,800.0,0.00044105,31]
[404634283,1770361088205,342.910753,7.945e-05,2]
[404634284,1770361094888,151.0,0.00044105,120]
[404634285,1770361095620,156.587,0.00044105,120]
[404634286,1770361096366,162.380719,0.00044105,120]
[404634287,1770361097156,168.3888056,0.00044105,120]
[404634288,1770361097867,174.61919141,0.00044105,120]
[404634289,1770361098581,181.08010149,0.00044105,120]
[404634290,1770361099754,187.78006525,0.00044105,120]
[404634291,1770361100475,194.72792766,0.00044105,120]
[404634292,1770361101186,201.93286099,0.00044105,120]
[404634293,1770361101912,209.40437684,0.00044105,120]
[404634294,1770361102651,217.15233878,0.00044105,120]
[404634295,1770361107231,225.18697532,0.00044105,120]
[404634296,1770361107857,233.51889341,0.00044105,120]
[404634297,1770361108590,242.15909246,0.00044105,120]
[404634298,1770361109283,251.11897888,0.00044105,120]
[404634299,1770361109995,260.4103811,0.00044105,120]
[404634300,1770361110694,270.0455652,0.00044105,120]
[404634301,1770361111579,280.03725112,0.00044105,120]
[404634302,1770361112279,290.39862941,0.00044105,120]
[404634303,1770361112969,290.39862941,0.00044105,120]
[404634304,1770361122527,695.14102004,0.00010516,2]
[404634306,1770361150225,151.0,0.00044105,120]
[404634307,1770361151400,156.587,0.00044105,120]
[404634308,1770361152143,162.380719,0.00044105,120]
[404634309,1770361152836,168.3888056,0.00044105,120]
[404634310,1770361153556,174.61919141,0.00044105,120]
[404634311,1770361154256,181.08010149,0.00044105,120]
[404634312,1770361155132,187.78006525,0.00044105,120]
[404634313,1770361155750,194.72792766,0.00044105,120]
[404634314,1770361155787,823.190664,0.00010562,2]
[404634315,1770361156462,201.93286099,0.00044105,120]
[404634316,1770361157088,209.40437684,0.00044105,120]
[404634317,1770361157861,217.15233878,0.00044105,120]
[404634318,1770361159063,225.18697532,0.00044105,120]
[404634319,1770361159271,233.51889341,0.00044105,120]
[404634320,1770361159913,242.15909246,0.00044105,120]
[404634321,1770361160627,251.11897888,0.00044105,120]
[404634322,1770361161343,260.4103811,0.00044105,120]
[404634323,1770361162051,270.0455652,0.00044105,120]
[404634324,1770361162747,280.03725112,0.00044105,120]
[404634325,1770361163451,290.39862941,0.00044105,120]
[404634326,1770361164156,290.39862941,0.00044105,120]
[404634327,1770361198397,233.35191026,0.00010516,2]
[404634328,1770361201330,300.0,0.00010615,2]
[404634329,1770361201368,300.0,0.00010615,2]
[404634330,1770361201407,1200.0,0.00010615,2]
[404634331,1770361202203,150.0,0.00010615,2]
[404634333,1770361209348,222.80901392,0.00010615,2]
[404634334,1770361213734,2409.57420882,0.00010516,2]
[404634335,1770361213761,10000.01,0.00010516,2]
[404634336,1770361213797,10000.01,0.00010516,2]
[404634337,1770361213823,10000.01,0.00010516,2]
[404634338,1770361213848,892.07699118,0.00010516,2]
[404634339,1770361224480,500.0,0.00010615,2]
[404634340,1770361224520,500.0,0.00010615,2]
[404634341,1770361224557,500.0,0.00010615,2]
[404634342,1770361224591,500.0,0.00010615,2]
[404634343,1770361224626,500.0,0.00010615,2]
[404634344,1770361224687,500.0,0.00010615,2]
[404634345,1770361224755,500.0,0.00010615,2]
[404634346,1770361224792,500.0,0.00010615,2]
[404634347,1770361224831,500.0,0.00010615,2]
[404634348,1770361224867,500.0,0.00010615,2]
[404634349,1770361224920,500.0,0.00010615,2]
[404634350,1770361224958,500.0,0.00010615,2]
[404634351,1770361224995,308.71351648,0.00010615,2]
[404634352,1770361225041,500.0,0.00010615,2]
[404634353,1770361225077,500.0,0.00010615,2]
[404634354,1770361225140,500.0,0.00010615,2]
[404634355,1770361225194,500.0,0.00010615,2]
[404634356,1770361225305,500.0,0.00010615,2]
[404634357,1770361229069,165.69438905,0.00010606,2]
[404634358,1770361230303,1025.60209447,0.00010516,2]
[404634359,1770361230332,10000.01,0.00010516,2]
[404634360,1770361230367,10000.01,0.00010516,2]
[404634361,1770361230408,10000.01,0.00010516,2]
[404634362,1770361230436,5000.01,0.00010516,2]
[404634363,1770361230462,5000.01,0.00010516,2]
[404634364,1770361230491,5000.01,0.00010516,2]
[404634365,1770361230517,5000.01,0.00010516,2]
[404634366,1770361230546,5000.01,0.00010516,2]
[404634367,1770361230574,5000.01,0.00010516,2]
[404634368,1770361230600,5000.01,0.00010516,2]
[404634369,1770361230624,5000.01,0.00010516,2]
[404634370,1770361230649,5000.01,0.00010516,2]
[404634371,1770361230674,5000.01,0.00010516,2]
[404634372,1770361230700,10000.01,0.00010516,2]
[404634373,1770361230728,10000.01,0.00010516,2]
[404634374,1770361257424,151.6725,0.000105,2]
[404634375,1770361258656,150.0,0.00044099,30]
[404634376,1770361261572,300.0,0.00010515,2]
[404634377,1770361266194,248.24122727,0.00044099,120]
[404634378,1770361279736,150.0,0.00044099,30]
[404634379,1770361291363,6227.93,0.00010407,2]
[404634380,1770361292403,3320.4075,0.00010306,2]
[404634381,1770361292429,43.9755,0.00010306,2]
[404634382,1770361292475,301.631,0.00010306,2]
[404634383,1770361300125,-7263.78813327,0.00010516,2]
[404634384,1770361300236,-10000.01,0.00010516,2]
[404634385,1770361300368,-10000.01,0.00010516,2]
[404634386,1770361300496,-10000.01,0.00010516,2]
[404634387,1770361300647,-10000.01,0.00010516,2]
[404634388,1770361300785,-10000.01,0.00010516,2]
[404634389,1770361300908,-10000.01,0.00010516,2]
[404634390,1770361302062,-10000.01,0.00010516,2]
[404634391,1770361302186,-10000.01,0.00010516,2]
[404634392,1770361302293,-10000.01,0.00010516,2]
[404634393,1770361302631,-10000.01,0.00010516,2]
[404634394,1770361302646,-10000.01,0.00010516,2]
[404634395,1770361302702,-10000.01,0.00010516,2]
[404634396,1770361302840,-10000.01,0.00010516,2]
[404634397,1770361302994,-10000.01,0.00010516,2]
[404634398,1770361303143,-10000.01,0.00010516,2]
[404634399,1770361303286,-10000.01,0.00010516,2]
[404634400,1770361303437,-10000.01,0.00010516,2]
[404634401,1770361303554,-10000.01,0.00010516,2]
[404634402,1770361303695,-10000.01,0.00010516,2]
[404634403,1770361303831,-10000.01,0.00010516,2]
[404634404,1770361304004,-10000.01,0.00010516,2]
[404634405,1770361305283,-10000.01,0.00010516,2]
[404634406,1770361305514,-10000.01,0.00010516,2]
[404634407,1770361305791,-10000.01,0.00010516,2]
[404634408,1770361305919,-10000.01,0.00010516,2]
[404634409,1770361306260,-10000.01,0.00010516,2]
[404634410,1770361306522,-10000.01,0.00010516,2]
[404634411,1770361306872,-10000.01,0.00010516,2]
[404634412,1770361307135,-10000.01,0.00010516,2]
[404634413,1770361321278,300.0,0.00010515,2]
[404634415,1770361323824,150.0,0.00010488,2]
[404634416,1770361328690,155.56794018,0.00010416,2]
[404634417,1770361362176,1064.51,0.00010371,2]
[404634418,1770361367922,1312.10428038,0.00010416,2]
[404634419,1770361381276,300.0,0.00010515,2]
[404634420,1770361382123,150.0,0.00010515,2]
[404634421,1770361382286,300.0,0.00010515,2]
[404634422,1770361395424,151.0,0.00010513,2]
[404634423,1770361397526,188.49,0.000105,2]
[404634424,1770361405729,1667.35916114,0.00044099,120]
[404634425,1770361441256,300.0,0.00010515,2]
[404634427,1770361452015,334.41239798,0.00010416,2]
[404634428,1770361459165,293.92538146,0.00010416,2]
[404634429,1770361459187,103.27128623,0.00010416,2]
[404634430,1770361488187,874.73618692,0.00010416,2]
[404634431,1770361492527,557.31,0.00010322,2]
[404634432,1770361501536,300.0,0.00010515,2]
[404634433,1770361501770,1200.0,0.00010515,2]
[404634434,1770361503159,40876.336635,0.00044099,45]
[404634435,1770361504267,800.0,0.00044099,31]
[404634436,1770361504649,800.0,0.00044099,31]
[404634437,1770361505001,800.0,0.00044099,31]
[404634438,1770361505575,800.0,0.00044099,31]
[404634439,1770361505918,800.0,0.00044099,31]
[404634440,1770361506172,800.0,0.00044099,31]
[404634441,1770361506577,800.0,0.00044099,31]
[404634442,1770361506922,800.0,0.00044099,31]
[404634443,1770361507270,800.0,0.00044099,31]
[404634444,1770361507625,800.0,0.00044099,31]
[404634445,1770361507967,800.0,0.00044099,31]
[404634446,1770361508370,800.0,0.00044099,31]
[404634447,1770361508866,800.0,0.00044099,31]
[404634448,1770361509120,1964.69252685,0.00010317,2]
[404634449,1770361509145,2747.79747315,0.00010317,2]
[404634450,1770361516089,151.0,0.00010513,2]
[404634451,1770361519551,150.0,0.00010488,2]
[404634452,1770361522125,1951.21252685,0.00010317,2]
[404634453,1770361522152,5000.01,0.00010317,2]
[404634454,1770361522174,2187.46747315,0.00010317,2]
[404634455,1770361534199,2812.54252685,0.00010463,2]
[404634456,1770361534222,3259.39566115,0.00010463,2]
[404634457,1770361538930,-1584.90943152,0.00010516,2]
[404634458,1770361539010,-4512.04720162,0.00010516,2]
[404634459,1770361549110,212.98072412,0.00010515,2]
[404634460,1770361549153,563.17910268,0.00010515,2]
[404634461,1770361549189,184.65112831,0.00010515,2]
[404634462,1770361549744,500.0,0.00010515,2]
[404634463,1770361552765,500.0,0.00010515,2]
[404634464,1770361552802,500.0,0.00010515,2]
[404634465,1770361552843,500.0,0.00010515,2]
[404634466,1770361552877,329.95183916,0.00010515,2]
[404634467,1770361552908,500.0,0.00010515,2]
[404634468,1770361552945,500.0,0.00010515,2]
[404634469,1770361552986,500.0,0.00010515,2]
[404634470,1770361553024,464.40046241,0.00010515,2]
[404634471,1770361553067,500.0,0.00010515,2]
[404634472,1770361553113,500.0,0.00010515,2]
[404634473,1770361553158,205.65769843,0.00010515,2]
[404634474,1770361553190,294.34230157,0.00010515,2]
[404634475,1770361553299,500.0,0.00010515,2]
[404634476,1770361553353,500.0,0.00010515,2]
[404634477,1770361553395,500.0,0.00010515,2]
[404634478,1770361553439,500.0,0.00010515,2]
[404634479,1770361553482,500.0,0.00010515,2]
[404634480,1770361553530,500.0,0.00010515,2]
[404634481,1770361553571,500.0,0.00010515,2]
[404634482,1770361553635,500.0,0.00010515,2]
[404634483,1770361553695,500.0,0.00010515,2]
[404634484,1770361553970,205.66769843,0.00010515,2]
[404634485,1770361554017,294.33230157,0.00010515,2]
[404634486,1770361554061,500.0,0.00010515,2]
[404634487,1770361554109,500.0,0.00010515,2]
[404634488,1770361554144,500.0,0.00010515,2]
[404634489,1770361554183,500.0,0.00010515,2]
[404634490,1770361554222,500.0,0.00010515,2]
[404634491,1770361554261,500.0,0.00010515,2]
[404634492,1770361554306,500.0,0.00010515,2]
[404634493,1770361554349,500.0,0.00010515,2]
[404634494,1770361554389,500.0,0.00010515,2]
[404634495,1770361554440,205.67769843,0.00010515,2]
[404634497,1770361564203,5202.57240503,0.00010393,2]
[404634498,1770361564225,5096.46759497,0.00010393,2]
[404634499,1770361564776,106.10481006,0.00010416,2]
[404634500,1770361564798,65.13923084,0.00010416,2]
[404634501,1770361576070,1000.0,0.00010426,2]
[404634502,1770361607982,1478.475315,0.00010462,2]
[404634503,1770361612099,-376.7211611,0.00010516,2]
[404634504,1770361622438,1293.369024,0.00010463,2]
[404634505,1770361627202,1515.11796999,0.0004412,30]
[404634506,1770361657204,174.92,0.00010512,2]
[404634509,1770361767718,283.24497752,0.0004412,120]
[404634511,1770361783432,-1200.0,0.00010515,2]
[404634512,1770361783464,-300.0,0.00010515,2]
[404634513,1770361798527,-250.0,0.00010515,2]
[404634514,1770361801795,1200.0,0.00010515,2]
[404634516,1770361825475,150.0,8.629e-05,2]
[404634522,1770361831314,-250.0,0.00010516,2]
[404634523,1770361831324,-623.2788389,0.00010516,2]
[404634524,1770361831333,-1728.7211611,0.00010516,2]
[404634525,1770361831349,-2413.61553984,0.00010516,2]
[404634526,1770361831399,-5857.66329906,0.00010516,2]
[404634527,1770361831408,-18976.6418,0.00010516,2]
[404634528,1770361831418,-3190.11042138,0.00010516,2]
[404634529,1770361831427,-1154.41270684,0.00010516,2]
[404634530,1770361831437,-1809.89957862,0.00010516,2]
[404634531,1770361831446,-500.0,0.00010677,2]
[404634532,1770361831455,-500.0,0.00010677,2]
[404634533,1770361831465,-500.0,0.00010677,2]
[404634534,1770361831474,-500.0,0.00010677,2]
[404634535,1770361831483,-500.0,0.00010677,2]
[404634536,1770361831492,-500.0,0.00010677,2]
[404634537,1770361831502,-500.0,0.00010677,2]
[404634538,1770361831511,-347.68754819,0.00010677,2]
[404634539,1770361831521,-5994.6518,0.0001074,2]
[404634540,1770361831531,-151.86,0.00010744,2]
[404634541,1770361831540,-200.0,0.00010776,2]
[404634542,1770361831550,-500.0,0.00010776,2]
[404634543,1770361831559,-500.0,0.00010776,2]
[404634544,1770361831568,-500.0,0.00010776,2]
[404634545,1770361831578,-500.0,0.00010776,2]
[404634546,1770361831587,-500.0,0.00010776,2]
[404634547,1770361831596,-500.0,0.00010776,2]
[404634548,1770361831606,-500.0,0.00010776,2]
[404634549,1770361831615,-500.0,0.00010776,2]
[404634550,1770361831625,-500.0,0.00010776,2]
[404634551,1770361831638,-500.0,0.00010776,2]
[404634552,1770361831648,-500.0,0.00010776,2]
[404634554,1770361831658,-500.0,0.00010776,2]
[404634556,1770361831667,-500.0,0.00010776,2]
[404634558,1770361831677,-500.0,0.00010776,2]
[404634560,1770361831687,-500.0,0.00010776,2]
[404634562,1770361831696,-500.0,0.00010776,2]
[404634563,1770361831707,-500.0,0.00010776,2]
[404634564,1770361831716,-500.0,0.00010776,2]
[404634566,1770361831725,-500.0,0.00010776,2]
[404634568,1770361831735,-500.0,0.00010776,2]
[404634570,1770361831744,-500.0,0.00010776,2]
[404634572,1770361831753,-500.0,0.00010776,2]
[404634573,1770361831766,-500.0,0.00010776,2]
[404634574,1770361831775,-500.0,0.00010776,2]
[404634575,1770361831784,-500.0,0.00010776,2]
[404634576,1770361831794,-500.0,0.00010776,2]
[404634577,1770361831803,-500.0,0.00010776,2]
[404634578,1770361831812,-500.0,0.00010776,2]
[404634579,1770361831822,-500.0,0.00010776,2]
[404634580,1770361831832,-500.0,0.00010776,2]
[404634581,1770361831842,-500.0,0.00010776,2]
[404634582,1770361831851,-500.0,0.00010776,2]
[404634583,1770361831860,-500.0,0.00010776,2]
[404634584,1770361831870,-500.0,0.00010776,2]
[404634585,1770361831880,-500.0,0.00010776,2]
[404634586,1770361831890,-500.0,0.00010776,2]
[404634587,1770361831900,-500.0,0.00010776,2]
[404634588,1770361831910,-500.0,0.00010776,2]
[404634589,1770361831919,-500.0,0.00010776,2]
[404634590,1770361831929,-500.0,0.00010776,2]
[404634591,1770361831939,-500.0,0.00010776,2]
[404634592,1770361832153,-500.0,0.00010776,2]
[404634593,1770361832164,-500.0,0.00010776,2]
[404634594,1770361832175,-500.0,0.00010776,2]
[404634595,1770361832185,-500.0,0.00010776,2]
[404634596,1770361832194,-500.0,0.00010776,2]
[404634597,1770361832204,-500.0,0.00010776,2]
[404634598,1770361832214,-500.0,0.00010776,2]
[404634599,1770361832223,-500.0,0.00010776,2]
[404634600,1770361832233,-500.0,0.00010776,2]
[404634601,1770361832242,-500.0,0.00010776,2]
[404634602,1770361832251,-500.0,0.00010776,2]
[404634603,1770361832260,-500.0,0.00010776,2]
[404634604,1770361832270,-211.77618962,0.00010776,2]
[404634605,1770361832279,-500.0,0.00010776,2]
[404634606,1770361832289,-500.0,0.00010776,2]
[404634607,1770361832298,-500.0,0.00010776,2]
[404634608,1770361832308,-500.0,0.00010776,2]
[404634609,1770361832317,-500.0,0.00010776,2]
[404634610,1770361832327,-500.0,0.00010776,2]
[404634611,1770361832336,-500.0,0.00010776,2]
[404634612,1770361832345,-500.0,0.00010776,2]
[404634613,1770361832355,-500.0,0.00010776,2]
[404634614,1770361832364,-500.0,0.00010776,2]
[404634615,1770361832374,-500.0,0.00010776,2]
[404634616,1770361832383,-500.0,0.00010776,2]
[404634617,1770361832392,-500.0,0.00010776,2]
[404634618,1770361832404,-500.0,0.00010776,2]
[404634619,1770361832413,-500.0,0.00010776,2]
[404634620,1770361832423,-500.0,0.00010776,2]
[404634621,1770361832432,-500.0,0.00010776,2]
[404634622,1770361832442,-500.0,0.00010776,2]
[404634623,1770361832452,-500.0,0.00010776,2]
[404634624,1770361832461,-500.0,0.00010776,2]
[404634625,1770361832471,-500.0,0.00010776,2]
[404634626,1770361832480,-500.0,0.00010776,2]
[404634627,1770361832490,-500.0,0.00010776,2]
[404634628,1770361832500,-500.0,0.00010776,2]
[404634629,1770361832509,-583.32981136,0.00010776,2]
[404634630,1770361832519,-583.32981136,0.00010776,2]
[404634631,1770361832528,-583.32981136,0.00010776,2]
[404634632,1770361832538,-583.32981136,0.00010776,2]
[404634633,1770361832548,-583.32981136,0.00010776,2]
[404634634,1770361832557,-583.32981136,0.00010776,2]
[404634635,1770361832568,-583.32981136,0.00010776,2]
[404634636,1770361832578,-583.32981136,0.00010776,2]
[404634637,1770361832587,-583.32981136,0.00010776,2]
[404634638,1770361832598,-583.32981136,0.00010776,2]
[404634639,1770361832607,-583.32981136,0.00010776,2]
[404634640,1770361832617,-78321.43341046,0.00010777,2]
[404634641,1770361832632,-25469.43119867,0.00010777,2]
[404634642,1770361832645,-11402.63771025,0.00010777,2]
[404634643,1770361832659,-56062.03401072,0.00010777,2]
[404634644,1770361832668,-1238.6662707,0.00010795,2]
[404634645,1770361832681,-637.7837293,0.00010795,2]
[404634646,1770361832690,-616.63435747,0.00010849,2]
[404634647,1770361832707,-1142.77564253,0.00010849,2]
[404634648,1770361832717,-4442.89,0.0001086,2]
[404634649,1770361832727,-500.0,0.00011096,2]
[404634650,1770361832736,-20619.25722969,0.00011099,2]
[404634651,1770361832747,-958.95559598,0.00011099,2]
[404634652,1770361832758,-1614.4797699,0.00011099,2]
[404634653,1770361832770,-405.95984743,0.00011099,2]
[404634654,1770361832783,-2152.13682902,0.00011099,2]
[404634655,1770361832792,-150.0,0.00011175,2]
[404634656,1770361832802,-259.12,0.000112,2]
[404634657,1770361832812,-150.0,0.000112,2]
[404634658,1770361832821,-500.0,0.00011216,2]
[404634659,1770361832831,-500.0,0.00011216,2]
[404634660,1770361832840,-500.0,0.00011216,2]
[404634661,1770361832850,-500.0,0.00011216,2]
[404634662,1770361832859,-500.0,0.00011216,2]
[404634663,1770361832868,-500.0,0.00011216,2]
[404634664,1770361832878,-500.0,0.00011216,2]
[404634665,1770361832887,-500.0,0.00011216,2]
[404634666,1770361832897,-500.0,0.00011216,2]
[404634667,1770361832907,-500.0,0.00011216,2]
[404634668,1770361832917,-500.0,0.00011216,2]
[404634669,1770361832927,-500.0,0.00011216,2]
[404634670,1770361832937,-500.0,0.00011216,2]
[404634671,1770361832947,-500.0,0.00011216,2]
[404634672,1770361832957,-500.0,0.00011216,2]
[404634673,1770361832967,-397.57591877,0.00011216,2]
[404634674,1770361832976,-9790.79,0.00011233,2]
[404634675,1770361832986,-153.02,0.00011457,2]
[404634676,1770361832996,-1258.17,0.00011481,2]
[404634677,1770361833006,-3524.82,0.00011487,2]
[404634678,1770361833015,-150.0,0.00011557,2]
[404634679,1770361833026,-504.0,0.00011566,2]
[404634680,1770361833036,-300.0,0.00011567,2]
[404634681,1770361833047,-250.0,0.00011567,2]
[404634682,1770361833057,-250.0,0.00011567,2]
[404634683,1770361833066,-500.0,0.00011617,2]
[404634684,1770361833076,-3690.32951141,0.00011623,2]
[404634685,1770361833099,-2277.12736625,0.00011623,2]
[404634686,1770361833111,-341.348914,0.00011623,2]
[404634692,1770361837366,-18691.22420834,0.00011623,2]
[404634693,1770361837376,-151.0,0.00011668,2]
[404634694,1770361837386,-1000.0,0.00011729,2]
[404634695,1770361837395,-2633.39,0.00011926,2]
[404634696,1770361837404,-9247.51,0.00012055,2]
[404634697,1770361837414,-5534.86,0.00012328,2]
[404634698,1770361837424,-166.68,0.00012343,2]
[404634699,1770361837433,-250.0,0.00012377,2]
[404634700,1770361837443,-759.9,0.000124,2]
[404634701,1770361837452,-1258.17,0.00012916,2]
[404634702,1770361837461,-9888.93,0.00012924,2]
[404634703,1770361837471,-38212.2752476,0.00012996,2]
[404634704,1770361837480,-1000.0,0.00013032,2]
[404634705,1770361837489,-25750.78927202,0.00013248,2]
[404634706,1770361837498,-3240.0,0.00013425,2]
[404634707,1770361837507,-8526.3110956,0.00013492,2]
[404634708,1770361837516,-500.0,0.00013616,2]
[404634709,1770361837526,-554.71,0.00013698,2]
[404634710,1770361837535,-554.71,0.00013698,2]
[404634711,1770361837544,-554.71,0.00013698,2]
[404634712,1770361837553,-554.71,0.00013698,2]
[404634713,1770361837563,-554.71,0.00013698,2]
[404634714,1770361837572,-554.71,0.00013698,2]
[404634715,1770361837581,-554.71,0.00013698,2]
[404634716,1770361837590,-554.71,0.00013698,2]
[404634717,1770361837599,-554.71,0.00013698,2]
[404634718,1770361837609,-554.71,0.00013698,2]
[404634719,1770361837618,-554.71,0.00013698,2]
[404634720,1770361837628,-554.71,0.00013698,2]
[404634721,1770361837643,-554.71,0.00013698,2]
[404634722,1770361837653,-554.71,0.00013698,2]
[404634723,1770361837663,-554.71,0.00013698,2]
[404634724,1770361837672,-554.71,0.00013698,2]
[404634725,1770361837682,-554.71,0.00013698,2]
[404634726,1770361837692,-500.0,0.00013698,2]
[404634727,1770361837701,-500.0,0.00013698,2]
[404634728,1770361837713,-154.20746345,0.00013698,2]
[404634729,1770361837723,-377.356311,0.00013698,2]
[404634730,1770361837732,-630.60697298,0.00013698,2]
[404634731,1770361837742,-200.0,0.00013699,2]
[404634732,1770361837752,-1826.89,0.00013699,2]
[404634733,1770361837761,-299.99,0.00013699,2]
[404634734,1770361837770,-9999.99,0.00013699,2]
[404634735,1770361837780,-9999.99,0.00013699,2]